fUSD/lending_fUSD_20250108
["ID","MTS","AMOUNT","RATE_DAILY","PERIOD"]
[348086708,1736301034026,-529.61,9.991e-05,2]
[348086709,1736301034035,-500.0,9.991e-05,2]
[348086710,1736301034044,-500.0,9.991e-05,2]
[348086711,1736301034054,-500.0,9.991e-05,2]
[348086712,1736301034064,-500.0,9.991e-05,2]
[348086713,1736301034074,-500.0,9.991e-05,2]
[348086714,1736301034083,-500.0,9.991e-05,2]
[348086715,1736301034092,-500.0,9.991e-05,2]
[348086716,1736301034102,-616.73,9.991e-05,2]
[348086717,1736301034111,-500.0,9.991e-05,2]
[348086718,1736301034120,-705.84,9.991e-05,2]
[348086719,1736301034130,-500.0,9.991e-05,2]
[348086720,1736301034139,-640.41,9.991e-05,2]
[348086721,1736301034148,-500.0,9.991e-05,2]
[348086722,1736301034158,-500.0,9.991e-05,2]
[348086723,1736301034167,-500.0,9.991e-05,2]
[348086724,1736301034178,-500.0,9.991e-05,2]
[348086725,1736301034188,-500.0,9.991e-05,2]
[348086726,1736301034198,-500.0,9.991e-05,2]
[348086727,1736301034208,-500.0,9.997e-05,2]
[348086728,1736301034218,-505.849332,9.997e-05,2]
[348086729,1736301034227,-500.0,9.997e-05,2]
[348086730,1736301034237,-500.0,9.997e-05,2]
[348086731,1736301034247,-500.0,9.997e-05,2]
[348086732,1736301034259,-509.97558534,9.997e-05,2]
[348086733,1736301034269,-500.0,9.997e-05,2]
[348086734,1736301034279,-503.58159117,9.997e-05,2]
[348086735,1736301034289,-500.0,9.997e-05,2]
[348086736,1736301034299,-500.0,9.997e-05,2]
[348086737,1736301034308,-500.0,9.997e-05,2]
[348086738,1736301034318,-505.62202646,9.997e-05,2]
[348086739,1736301034328,-500.0,9.997e-05,2]
[348086740,1736301034338,-500.0,9.997e-05,2]
[348086741,1736301034347,-500.0,9.997e-05,2]
[348086742,1736301034357,-500.0,9.997e-05,2]
[348086743,1736301034368,-512.19931645,9.997e-05,2]
[348086744,1736301034377,-505.19170021,9.997e-05,2]
[348086745,1736301034387,-500.0,9.997e-05,2]
[348086746,1736301034397,-502.92973222,9.997e-05,2]
[348086747,1736301034406,-500.0,9.997e-05,2]
[348086748,1736301034415,-507.69615987,9.997e-05,2]
[348086749,1736301034424,-500.0,9.997e-05,2]
[348086750,1736301034434,-500.0,9.997e-05,2]
[348086751,1736301034443,-500.0,9.997e-05,2]
[348086752,1736301034452,-500.0,9.997e-05,2]
[348086753,1736301034462,-504.19334368,9.997e-05,2]
[348086754,1736301034472,-500.0,9.997e-05,2]
[348086755,1736301034481,-500.0,9.997e-05,2]
[348086756,1736301034491,-500.0,9.997e-05,2]
[348086757,1736301034500,-500.0,9.997e-05,2]
[348086758,1736301034510,-500.0,9.997e-05,2]
[348086759,1736301034519,-321.2462397,9.997e-05,2]
[348086760,1736301034529,-500.0,9.997e-05,2]
[348086761,1736301034538,-500.0,9.997e-05,2]
[348086762,1736301034548,-500.0,9.997e-05,2]
[348086763,1736301034558,-598.37,9.997e-05,2]
[348086764,1736301034567,-504.78568976,9.997e-05,2]
[348086765,1736301034576,-500.0,9.997e-05,2]
[348086766,1736301034586,-504.93893168,9.997e-05,2]
[348086767,1736301034596,-500.0,9.997e-05,2]
[348086768,1736301034605,-500.0,9.997e-05,2]
[348086769,1736301034615,-500.0,9.997e-05,2]
[348086770,1736301034624,-500.0,9.997e-05,2]
[348086771,1736301034633,-500.0,9.997e-05,2]
[348086772,1736301034642,-502.97980316,9.997e-05,2]
[348086773,1736301034651,-503.34519273,9.997e-05,2]
[348086774,1736301034661,-500.0,9.997e-05,2]
[348086775,1736301034672,-500.0,9.997e-05,2]
[348086776,1736301034681,-500.0,9.997e-05,2]
[348086777,1736301034690,-504.42082281,9.997e-05,2]
[348086778,1736301034699,-312.49045624,9.997e-05,2]
[348086779,1736301034709,-500.0,9.997e-05,2]
[348086780,1736301034718,-500.0,9.997e-05,2]
[348086781,1736301034727,-504.2052579,9.997e-05,2]
[348086782,1736301034736,-500.0,9.997e-05,2]
[348086783,1736301034745,-349.10568101,9.997e-05,2]
[348086784,1736301034759,-150.89431899,9.997e-05,2]
[348086785,1736301034768,-500.0,9.997e-05,2]
[348086786,1736301034777,-506.15972174,9.997e-05,2]
[348086787,1736301034786,-585.45,9.997e-05,2]
[348086788,1736301034795,-503.55797332,9.997e-05,2]
[348086789,1736301034805,-500.0,9.997e-05,2]
[348086790,1736301034814,-504.78695532,9.997e-05,2]
[348086791,1736301034823,-503.43257146,9.997e-05,2]
[348086792,1736301034832,-500.0,9.997e-05,2]
[348086793,1736301034841,-500.0,9.997e-05,2]
[348086794,1736301034850,-1091.65,9.997e-05,2]
[348086795,1736301034859,-500.0,9.997e-05,2]
[348086796,1736301034869,-503.08398009,9.997e-05,2]
[348086797,1736301034878,-500.0,9.997e-05,2]
[348086798,1736301034892,-503.61917194,9.997e-05,2]
[348086799,1736301034901,-500.0,9.997e-05,2]
[348086800,1736301034910,-500.0,9.997e-05,2]
[348086801,1736301034919,-500.0,9.997e-05,2]
[348086802,1736301034929,-483.80534894,9.997e-05,2]
[348086803,1736301034985,-16.19465106,9.997e-05,2]
[348086804,1736301034995,-1764.67,9.997e-05,2]
[348086805,1736301035007,-500.0,9.997e-05,2]
[348086806,1736301035016,-500.0,9.997e-05,2]
[348086807,1736301035025,-656.95,9.997e-05,2]
[348086808,1736301035035,-233.70567781,9.997e-05,2]
[348086809,1736301035046,-271.91664834,9.997e-05,2]
[348086810,1736301035055,-500.0,9.997e-05,2]
[348086811,1736301035064,-500.0,9.997e-05,2]
[348086812,1736301035074,-939.56,9.997e-05,2]
[348086813,1736301035083,-1354.02,9.997e-05,2]
[348086814,1736301035093,-500.0,9.997e-05,2]
[348086815,1736301035102,-503.50745571,9.997e-05,2]
[348086816,1736301035113,-404.25891795,9.997e-05,2]
[348086817,1736301035124,-95.74108205,9.997e-05,2]
[348086818,1736301035135,-351.14440061,9.997e-05,2]
[348086819,1736301035145,-1396.55,9.997e-05,2]
[348086820,1736301035154,-500.0,9.997e-05,2]
[348086821,1736301035164,-503.83595105,9.997e-05,2]
[348086822,1736301035175,-152.72856629,9.997e-05,2]
[348086823,1736301035187,-347.27143371,9.997e-05,2]
[348086824,1736301035197,-505.15105748,9.997e-05,2]
[348086825,1736301035206,-996.62,9.997e-05,2]
[348086826,1736301035216,-505.1898936,9.997e-05,2]
[348086827,1736301035225,-504.35293383,9.997e-05,2]
[348086828,1736301035234,-595.98,9.997e-05,2]
[348086829,1736301035243,-502.92666985,9.997e-05,2]
[348086830,1736301035256,-216.22692665,9.997e-05,2]
[348086831,1736301035265,-515.46,9.997e-05,2]
[348086832,1736301035275,-503.92960639,9.997e-05,2]
[348086833,1736301035284,-421.54389213,9.997e-05,2]
[348086834,1736301035295,-500.0,9.997e-05,2]
[348086835,1736301035305,-400.73310736,9.997e-05,2]
[348086836,1736301035316,-99.26689264,9.997e-05,2]
[348086837,1736301035325,-500.0,9.997e-05,2]
[348086838,1736301035335,-500.0,9.997e-05,2]
[348086839,1736301035345,-933.44,9.997e-05,2]
[348086840,1736301035354,-500.0,9.997e-05,2]
[348086841,1736301035363,-519.79069385,9.997e-05,2]
[348086842,1736301035373,-245.46184397,9.997e-05,2]
[348086843,1736301035384,-258.11037155,9.997e-05,2]
[348086844,1736301035393,-500.0,9.997e-05,2]
[348086845,1736301035403,-8.28373608,9.997e-05,2]
[348086846,1736301035414,-491.71626392,9.997e-05,2]
[348086847,1736301035424,-503.22119288,9.997e-05,2]
[348086848,1736301035433,-491.401361,9.997e-05,2]
[348086849,1736301035443,-171.46858416,9.997e-05,2]
[348086850,1736301035674,-331.90805916,9.997e-05,2]
[348086851,1736301035683,-847.02,9.997e-05,2]
[348086852,1736301035693,-500.0,9.997e-05,2]
[348086853,1736301035702,-863.21,9.997e-05,2]
[348086854,1736301035711,-563.08,9.997e-05,2]
[348086855,1736301035721,-500.0,9.997e-05,2]
[348086856,1736301035731,-279.4781576,9.997e-05,2]
[348086857,1736301035740,-386.08271315,9.997e-05,2]
[348086874,1736301038099,-113.91728685,9.997e-05,2]
[348086875,1736301038108,-187.99327141,9.997e-05,2]
[348086876,1736301038120,-312.00672859,9.997e-05,2]
[348086877,1736301038129,-123.67498997,9.997e-05,2]
[348086878,1736301038141,-376.32501003,9.997e-05,2]
[348086879,1736301038150,-500.0,9.997e-05,2]
[348086880,1736301038159,-1197.79,9.997e-05,2]
[348086881,1736301038168,-500.0,9.997e-05,2]
[348086882,1736301038179,-500.0,9.997e-05,2]
[348086883,1736301038189,-500.0,9.997e-05,2]
[348086884,1736301038198,-502.44749784,9.998e-05,2]
[348086885,1736301038207,-500.0,9.998e-05,2]
[348086886,1736301038218,-502.8807385,9.998e-05,2]
[348086887,1736301038227,-500.0,9.998e-05,2]
[348086888,1736301038236,-500.0,9.998e-05,2]
[348086889,1736301038246,-500.0,9.998e-05,2]
[348086890,1736301038256,-504.47947858,9.998e-05,2]
[348086891,1736301038265,-500.0,9.998e-05,2]
[348086893,1736301038274,-500.0,9.998e-05,2]
[348086894,1736301038283,-500.0,9.998e-05,2]
[348086895,1736301038292,-501.51424259,9.998e-05,2]
[348086896,1736301038302,-500.0,9.998e-05,2]
[348086897,1736301038311,-500.0,9.998e-05,2]
[348086898,1736301038321,-500.0,9.998e-05,2]
[348086899,1736301038330,-500.0,9.998e-05,2]
[348086900,1736301038339,-500.0,9.998e-05,2]
[348086901,1736301038349,-500.0,9.998e-05,2]
[348086902,1736301038359,-500.0,9.998e-05,2]
[348086903,1736301038368,-500.0,9.998e-05,2]
[348086904,1736301038377,-500.0,9.998e-05,2]
[348086905,1736301038388,-500.0,9.998e-05,2]
[348086906,1736301038398,-500.0,9.998e-05,2]
[348086907,1736301038407,-500.0,9.998e-05,2]
[348086908,1736301038416,-460.53035646,9.998e-05,2]
[348086909,1736301038429,-39.46964354,9.998e-05,2]
[348086910,1736301038438,-500.0,9.998e-05,2]
[348086911,1736301038447,-503.39985202,9.998e-05,2]
[348086913,1736301038456,-502.86868793,9.998e-05,2]
[348086915,1736301038465,-572.00976282,9.998e-05,2]
[348086916,1736301038474,-500.0,9.998e-05,2]
[348086917,1736301038484,-500.0,9.998e-05,2]
[348086918,1736301038493,-378.971996,9.998e-05,2]
[348086919,1736301038504,-500.0,9.998e-05,2]
[348086920,1736301038513,-504.15990037,9.998e-05,2]
[348086921,1736301038522,-500.0,9.998e-05,2]
[348086922,1736301038531,-500.0,9.998e-05,2]
[348086923,1736301038541,-504.13019418,9.998e-05,2]
[348086924,1736301038551,-500.0,9.998e-05,2]
[348086925,1736301038561,-500.0,9.998e-05,2]
[348086926,1736301038569,-500.0,9.998e-05,2]
[348086927,1736301038578,-500.0,9.998e-05,2]
[348086928,1736301038587,-500.0,9.998e-05,2]
[348086929,1736301038596,-502.75988155,9.998e-05,2]
[348086930,1736301038605,-500.0,9.998e-05,2]
[348086931,1736301038614,-502.98492538,9.998e-05,2]
[348086932,1736301038623,-500.0,9.998e-05,2]
[348086933,1736301038632,-503.13058085,9.998e-05,2]
[348086934,1736301038641,-504.33336567,9.998e-05,2]
[348086935,1736301038650,-500.0,9.998e-05,2]
[348086936,1736301038659,-502.97058804,9.998e-05,2]
[348086937,1736301038669,-500.0,9.998e-05,2]
[348086938,1736301038678,-505.92600863,9.998e-05,2]
[348086939,1736301038687,-543.00694376,9.998e-05,2]
[348086940,1736301038697,-502.93235026,9.998e-05,2]
[348086941,1736301038706,-524.62723114,9.998e-05,2]
[348086942,1736301038715,-500.0,9.998e-05,2]
[348086943,1736301038724,-504.29078833,9.998e-05,2]
[348086944,1736301038733,-502.74873961,9.998e-05,2]
[348086945,1736301038742,-500.0,9.998e-05,2]
[348086946,1736301038753,-504.41299324,9.998e-05,2]
[348086947,1736301038762,-503.42767334,9.998e-05,2]
[348086948,1736301038771,-503.48411115,9.998e-05,2]
[348086949,1736301038780,-500.0,9.998e-05,2]
[348086950,1736301038790,-500.0,9.998e-05,2]
[348086951,1736301038799,-503.43304806,9.998e-05,2]
[348086952,1736301038808,-500.0,9.998e-05,2]
[348086953,1736301038818,-502.88850841,9.998e-05,2]
[348086954,1736301038827,-502.24169385,9.998e-05,2]
[348086955,1736301038836,-503.04665268,9.998e-05,2]
[348086956,1736301038844,-500.0,9.998e-05,2]
[348086957,1736301038853,-503.15777776,9.998e-05,2]
[348086958,1736301038863,-500.0,9.998e-05,2]
[348086959,1736301038872,-500.0,9.998e-05,2]
[348086960,1736301038882,-502.73533341,9.998e-05,2]
[348086961,1736301038894,-500.0,9.998e-05,2]
[348086962,1736301038904,-366.34936782,9.998e-05,2]
[348086963,1736301038913,-503.26961466,9.998e-05,2]
[348086964,1736301038923,-500.0,9.998e-05,2]
[348086965,1736301038932,-500.0,9.998e-05,2]
[348086966,1736301038941,-500.0,9.998e-05,2]
[348086967,1736301038950,-500.0,9.998e-05,2]
[348086968,1736301038960,-507.40222837,9.998e-05,2]
[348086969,1736301038969,-500.0,9.998e-05,2]
[348086970,1736301038978,-500.0,9.998e-05,2]
[348086971,1736301038987,-500.0,9.998e-05,2]
[348086972,1736301038997,-500.0,9.998e-05,2]
[348086973,1736301039007,-500.0,9.998e-05,2]
[348086974,1736301039017,-500.0,9.998e-05,2]
[348086975,1736301039026,-502.01241624,9.998e-05,2]
[348086976,1736301039036,-500.0,9.998e-05,2]
[348086977,1736301039045,-500.0,9.998e-05,2]
[348086978,1736301039055,-500.0,9.998e-05,2]
[348086979,1736301039063,-500.0,9.998e-05,2]
[348086980,1736301039074,-500.0,9.998e-05,2]
[348086981,1736301039083,-500.0,9.998e-05,2]
[348086982,1736301039092,-500.0,9.998e-05,2]
[348086983,1736301039101,-500.0,9.998e-05,2]
[348086984,1736301039111,-500.0,9.998e-05,2]
[348086985,1736301039121,-500.0,9.998e-05,2]
[348086986,1736301039130,-500.0,9.998e-05,2]
[348086987,1736301039139,-500.0,9.998e-05,2]
[348086988,1736301039148,-500.0,9.998e-05,2]
[348086989,1736301039157,-216.23132785,9.998e-05,2]
[348086990,1736301039166,-500.0,9.998e-05,2]
[348086991,1736301039178,-500.0,9.998e-05,2]
[348086992,1736301039188,-500.0,9.998e-05,2]
[348086993,1736301039197,-500.0,9.998e-05,2]
[348086994,1736301039207,-281.04472407,9.998e-05,2]
[348086995,1736301039216,-500.0,9.998e-05,2]
[348086996,1736301039225,-500.0,9.998e-05,2]
[348086997,1736301039234,-500.0,9.998e-05,2]
[348086998,1736301039243,-500.0,9.998e-05,2]
[348086999,1736301039253,-500.0,9.998e-05,2]
[348087000,1736301039262,-500.0,9.998e-05,2]
[348087001,1736301039272,-500.0,9.998e-05,2]
[348087002,1736301039281,-500.0,9.998e-05,2]
[348087003,1736301039290,-500.0,9.998e-05,2]
[348087004,1736301039308,-503.71465137,9.998e-05,2]
[348087005,1736301039321,-500.0,9.998e-05,2]
[348087006,1736301039331,-510.94434649,9.998e-05,2]
[348087007,1736301039341,-500.0,9.998e-05,2]
[348087008,1736301039350,-502.60777639,9.998e-05,2]
[348087009,1736301039360,-505.32445656,9.998e-05,2]
[348087010,1736301039370,-502.23166626,9.998e-05,2]
[348087011,1736301039379,-500.0,9.998e-05,2]
[348087012,1736301039389,-500.0,9.998e-05,2]
[348087013,1736301039399,-500.0,9.998e-05,2]
[348087014,1736301039409,-500.0,9.998e-05,2]
[348087015,1736301039419,-156.93213291,9.998e-05,2]
[348087016,1736301039428,-501.74590742,9.998e-05,2]
[348087017,1736301039438,-567.44769223,9.998e-05,2]
[348087018,1736301039448,-500.0,9.998e-05,2]
[348087019,1736301039457,-502.7187939,9.998e-05,2]
[348087020,1736301039467,-500.0,9.998e-05,2]
[348087021,1736301039477,-501.84230223,9.998e-05,2]
[348087022,1736301039487,-540.62863797,9.998e-05,2]
[348087023,1736301039497,-500.0,9.998e-05,2]
[348087024,1736301039508,-500.0,9.998e-05,2]
[348087025,1736301039518,-502.97591668,9.998e-05,2]
[348087026,1736301039527,-500.0,9.998e-05,2]
[348087027,1736301039537,-505.37651756,9.998e-05,2]
[348087028,1736301039546,-500.0,9.998e-05,2]
[348087029,1736301039556,-500.0,9.998e-05,2]
[348087030,1736301039565,-500.0,9.998e-05,2]
[348087032,1736301039575,-505.08565715,9.998e-05,2]
[348087033,1736301039585,-500.0,9.998e-05,2]
[348087034,1736301039594,-500.0,9.998e-05,2]
[348087035,1736301039604,-505.09967303,9.998e-05,2]
[348087036,1736301039614,-503.60778866,9.998e-05,2]
[348087037,1736301039624,-502.37052831,9.998e-05,2]
[348087038,1736301039634,-500.0,9.998e-05,2]
[348087039,1736301039644,-500.0,9.998e-05,2]
[348087040,1736301039653,-500.0,9.998e-05,2]
[348087041,1736301039663,-515.29777539,9.998e-05,2]
[348087042,1736301039672,-500.0,9.998e-05,2]
[348087043,1736301039682,-500.0,9.998e-05,2]
[348087044,1736301039692,-500.0,9.998e-05,2]
[348087045,1736301039701,-500.0,9.998e-05,2]
[348087046,1736301039711,-500.0,9.998e-05,2]
[348087047,1736301039720,-509.4459274,9.998e-05,2]
[348087048,1736301039730,-521.42815945,9.998e-05,2]
[348087049,1736301039739,-500.0,9.998e-05,2]
[348087050,1736301039750,-504.72384395,9.998e-05,2]
[348087051,1736301039762,-505.90985015,9.998e-05,2]
[348087052,1736301039772,-500.0,9.998e-05,2]
[348087053,1736301039781,-500.0,9.998e-05,2]
[348087054,1736301039792,-500.0,9.998e-05,2]
[348087055,1736301039801,-502.12986818,9.998e-05,2]
[348087056,1736301039811,-500.0,9.998e-05,2]
[348087057,1736301039821,-500.0,9.998e-05,2]
[348087058,1736301039831,-500.0,9.998e-05,2]
[348087059,1736301039841,-500.0,9.998e-05,2]
[348087060,1736301039850,-502.8811483,9.998e-05,2]
[348087061,1736301039860,-502.99805101,9.998e-05,2]
[348087063,1736301039869,-500.0,9.998e-05,2]
[348087064,1736301039879,-500.0,9.998e-05,2]
[348087066,1736301039890,-501.02885426,9.998e-05,2]
[348087067,1736301039899,-500.0,9.998e-05,2]
[348087068,1736301039909,-502.84563691,9.998e-05,2]
[348087069,1736301039919,-500.0,9.998e-05,2]
[348087070,1736301039930,-500.0,9.998e-05,2]
[348087071,1736301039940,-500.0,9.998e-05,2]
[348087072,1736301039949,-500.0,9.998e-05,2]
[348087073,1736301039959,-507.42946,9.998e-05,2]
[348087074,1736301039969,-500.0,9.998e-05,2]
[348087075,1736301039978,-613.92041162,9.998e-05,2]
[348087076,1736301039988,-500.0,9.998e-05,2]
[348087077,1736301039997,-500.0,9.998e-05,2]
[348087078,1736301040008,-503.90731447,9.998e-05,2]
[348087079,1736301040018,-500.0,9.998e-05,2]
[348087080,1736301040028,-500.0,9.998e-05,2]
[348087081,1736301040037,-622.21,9.998e-05,2]
[348087082,1736301040046,-885.34,9.998e-05,2]
[348087083,1736301040056,-500.0,9.998e-05,2]
[348087084,1736301040065,-3871.62,9.998e-05,2]
[348087085,1736301040075,-500.0,9.998e-05,2]
[348087086,1736301040084,-500.0,9.998e-05,2]
[348087087,1736301040094,-771.26,9.998e-05,2]
[348087088,1736301040104,-504.34483422,9.998e-05,2]
[348087089,1736301040113,-500.0,9.998e-05,2]
[348087090,1736301040122,-595.27,9.998e-05,2]
[348087091,1736301040131,-500.0,9.998e-05,2]
[348087092,1736301040141,-1121.27,9.998e-05,2]
[348087093,1736301040150,-500.0,9.998e-05,2]
[348087094,1736301040159,-500.0,9.998e-05,2]
[348087095,1736301040168,-503.40772032,9.998e-05,2]
[348087096,1736301040179,-504.35825656,9.998e-05,2]
[348087097,1736301040190,-807.37,9.998e-05,2]
[348087098,1736301040199,-500.0,9.998e-05,2]
[348087099,1736301040209,-639.82,9.998e-05,2]
[348087100,1736301040219,-1172.72,9.998e-05,2]
[348087101,1736301040228,-967.24,9.998e-05,2]
[348087102,1736301040238,-500.0,9.998e-05,2]
[348087103,1736301040248,-500.0,9.998e-05,2]
[348087104,1736301040259,-2416.18,9.998e-05,2]
[348087105,1736301040268,-500.0,9.998e-05,2]
[348087106,1736301040278,-500.0,9.998e-05,2]
[348087107,1736301040287,-2623.45,9.998e-05,2]
[348087108,1736301040297,-500.0,9.998e-05,2]
[348087109,1736301040306,-500.0,9.998e-05,2]
[348087110,1736301040316,-1447.63,9.998e-05,2]
[348087111,1736301040326,-1650.39,9.998e-05,2]
[348087112,1736301040335,-500.0,9.999e-05,2]
[348087113,1736301040344,-500.0,9.999e-05,2]
[348087114,1736301040354,-572.42,9.999e-05,2]
[348087115,1736301040364,-500.0,9.999e-05,2]
[348087116,1736301040373,-500.0,9.999e-05,2]
[348087117,1736301040382,-627.45,9.999e-05,2]
[348087118,1736301040391,-836.84,9.999e-05,2]
[348087119,1736301040401,-836.84,9.999e-05,2]
[348087120,1736301040410,-686.63,9.999e-05,2]
[348087121,1736301040420,-514.14,9.999e-05,2]
[348087122,1736301040429,-661.92,9.999e-05,2]
[348087123,1736301040439,-500.0,9.999e-05,2]
[348087124,1736301040448,-500.0,9.999e-05,2]
[348087125,1736301040457,-507.02953796,9.999e-05,2]
[348087126,1736301040467,-500.0,9.999e-05,2]
[348087127,1736301040476,-500.0,9.999e-05,2]
[348087128,1736301040486,-500.0,9.999e-05,2]
[348087129,1736301040496,-500.0,9.999e-05,2]
[348087130,1736301040508,-500.0,9.999e-05,2]
[348087131,1736301040519,-762.73,9.999e-05,2]
[348087132,1736301040529,-500.0,9.999e-05,2]
[348087133,1736301040538,-500.0,9.999e-05,2]
[348087134,1736301040548,-506.77207581,9.999e-05,2]
[348087135,1736301040558,-500.0,9.999e-05,2]
[348087136,1736301040567,-500.0,9.999e-05,2]
[348087137,1736301040576,-508.86692333,9.999e-05,2]
[348087138,1736301040586,-500.0,9.999e-05,2]
[348087139,1736301040595,-500.0,9.999e-05,2]
[348087140,1736301040605,-500.0,9.999e-05,2]
[348087141,1736301040614,-500.0,9.999e-05,2]
[348087142,1736301040623,-2290.44,9.999e-05,2]
[348087143,1736301040632,-500.0,9.999e-05,2]
[348087144,1736301040643,-500.0,9.999e-05,2]
[348087145,1736301040652,-506.97663772,9.999e-05,2]
[348087146,1736301040661,-500.0,9.999e-05,2]
[348087147,1736301040671,-224.56242284,9.999e-05,2]
[348087148,1736301040680,-500.0,9.999e-05,2]
[348087149,1736301040689,-1610.6,9.999e-05,2]
[348087150,1736301040699,-500.0,9.999e-05,2]
[348087151,1736301040708,-500.0,9.999e-05,2]
[348087152,1736301040717,-500.0,9.999e-05,2]
[348087153,1736301040726,-500.0,9.999e-05,2]
[348087154,1736301040735,-500.0,9.999e-05,2]
[348087155,1736301040745,-500.0,9.999e-05,2]
[348087156,1736301040756,-500.0,9.999e-05,2]
[348087157,1736301040765,-500.0,9.999e-05,2]
[348087158,1736301040774,-503.29284692,9.999e-05,2]
[348087159,1736301040783,-330.88010759,9.999e-05,2]
[348087160,1736301041158,-169.11989241,9.999e-05,2]
[348087161,1736301041168,-500.0,9.999e-05,2]
[348087162,1736301041179,-500.0,9.999e-05,2]
[348087163,1736301041189,-500.0,9.999e-05,2]
[348087164,1736301041199,-500.0,9.999e-05,2]
[348087165,1736301041208,-504.83143957,9.999e-05,2]
[348087166,1736301041218,-500.0,9.999e-05,2]
[348087167,1736301041228,-500.0,9.999e-05,2]
[348087168,1736301041238,-500.0,9.999e-05,2]
[348087169,1736301041246,-500.0,9.999e-05,2]
[348087170,1736301041259,-511.26197677,9.999e-05,2]
[348087171,1736301041268,-500.0,9.999e-05,2]
[348087172,1736301041277,-500.0,9.999e-05,2]
[348087173,1736301041285,-500.0,9.999e-05,2]
[348087174,1736301041294,-500.0,9.999e-05,2]
[348087175,1736301041303,-500.0,9.999e-05,2]
[348087176,1736301041312,-302.11155732,9.999e-05,2]
[348087177,1736301041324,-197.88844268,9.999e-05,2]
[348087178,1736301041334,-352.58531032,9.999e-05,2]
[348087179,1736301041345,-437.22126349,9.999e-05,2]
[348087180,1736301041380,-500.0,9.997e-05,2]
[348087181,1736301041391,-104.09342619,9.999e-05,2]
[348087182,1736301041401,-500.0,9.999e-05,2]
[348087183,1736301041412,-235.91835936,9.999e-05,2]
[348087184,1736301041426,-264.08164064,9.999e-05,2]
[348087185,1736301041437,-500.0,9.999e-05,2]
[348087186,1736301041447,-500.0,9.999e-05,2]
[348087187,1736301041457,-500.0,9.999e-05,2]
[348087188,1736301041468,-500.0,9.999e-05,2]
[348087189,1736301041478,-529.69,9.999e-05,2]
[348087190,1736301041488,-500.0,9.999e-05,2]
[348087191,1736301041498,-500.0,9.999e-05,2]
[348087192,1736301041515,-1200.67524683,9.999e-05,2]
[348087193,1736301041527,-51.02475317,9.999e-05,2]
[348087194,1736301041537,-500.0,9.999e-05,2]
[348087195,1736301041547,-500.0,9.999e-05,2]
[348087196,1736301041556,-500.0,9.999e-05,2]
[348087197,1736301041566,-500.0,9.999e-05,2]
[348087198,1736301041576,-500.0,9.999e-05,2]
[348087199,1736301041585,-500.0,9.999e-05,2]
[348087200,1736301041595,-500.0,9.999e-05,2]
[348087201,1736301041604,-500.0,9.999e-05,2]
[348087202,1736301041613,-291.62386452,9.999e-05,2]
[348087203,1736301041834,-210.62362399,9.999e-05,2]
[348087204,1736301041844,-500.0,9.999e-05,2]
[348087205,1736301041854,-502.89426774,9.999e-05,2]
[348087206,1736301041863,-502.94,9.999e-05,2]
[348087207,1736301041872,-500.0,9.999e-05,2]
[348087208,1736301041881,-557.04,9.999e-05,2]
[348087209,1736301041895,-503.0470916,9.999e-05,2]
[348087210,1736301041904,-500.0,9.999e-05,2]
[348087211,1736301041914,-517.92,9.999e-05,2]
[348087212,1736301041923,-500.0,9.999e-05,2]
[348087213,1736301041933,-9.43666667,9.999e-05,2]
[348087217,1736301042477,-490.56333333,9.999e-05,2]
[348087218,1736301042486,-500.0,9.999e-05,2]
[348087219,1736301042496,-267.6571917,9.999e-05,2]
[348087220,1736301042533,-292.3128083,9.999e-05,2]
[348087221,1736301042542,-62.34348041,9.999e-05,2]
[348087222,1736301042568,-1778.68651959,9.999e-05,2]
[348087223,1736301042578,-500.0,9.999e-05,2]
[348087224,1736301042587,-500.0,9.999e-05,2]
[348087225,1736301042596,-500.0,9.999e-05,2]
[348087226,1736301042605,-500.0,9.999e-05,2]
[348087227,1736301042614,-500.0,9.999e-05,2]
[348087228,1736301042624,-500.0,9.999e-05,2]
[348087229,1736301042633,-500.0,9.999e-05,2]
[348087230,1736301042643,-500.0,9.999e-05,2]
[348087231,1736301042652,-500.0,9.999e-05,2]
[348087232,1736301042661,-405.80790558,9.999e-05,2]